bitfinex/quotes_ETHUSD_20240828
["timestamp","ask_amount","ask_price","bid_price","bid_amount"]
[1724815062585,2.4648,2479.3,2479.1,4.05836717]
[1724815062789,2.4648,2479.3,2479.1,4.13903359]
[1724815063094,2.3625,2479.8,2479.2,7.46559253]
[1724815063306,2.3625,2479.8,2479.7,4.05836717]
[1724815064501,2.3625,2479.8,2479.7,4.60836717]
[1724815064706,2.3625,2479.8,2479.5,4.05836717]
[1724815064877,2.3625,2479.8,2479.6,0.55]
[1724815065075,2.3625,2479.8,2479.5,4.05836717]
[1724815065402,2.3625,2479.8,2479.6,3.0]
[1724815068284,2.3625,2479.8,2478.8,4.0416975]
[1724815068285,2.59955154,2479.8,2479.1,4.05836717]
[1724815068688,2.59955154,2479.8,2479.1,4.13902886]
[1724815068897,2.2851,2479.6,2479.1,4.13902886]
[1724815069201,2.2851,2479.6,2479.3,4.05836717]
[1724815069422,0.04033704,2479.5,2479.3,4.05836717]
[1724815069911,2.3716,2479.4,2479.3,4.05836717]
[1724815070206,2.4116924,2479.4,2479.1,4.05836717]
[1724815070613,2.3716,2479.4,2479.1,4.05836717]
[1724815070818,0.03998938,2479.3,2479.1,4.05836717]
[1724815070985,2.3716,2479.4,2479.1,4.05736811]
[1724815071409,2.3716,2479.4,2479.3,4.05836717]
[1724815071597,2.3716,2479.4,2479.3,4.60836717]
[1724815071797,2.4115765,2479.4,2479.3,4.60836717]
[1724815072297,0.0399765,2479.4,2479.3,4.60836717]
[1724815072486,0.0399765,2479.4,2479.3,4.68902065]
[1724815072825,0.0399765,2479.4,2479.3,4.60836717]
[1724815072996,2.4027,2479.7,2479.3,4.60836717]
[1724815073183,2.4027,2479.7,2479.4,0.63065349]
[1724815073385,0.0399765,2479.6,2479.4,0.63065349]
[1724815074464,0.0399765,2479.6,2479.5,4.05836717]
[1724815074626,0.038739,2479.6,2479.5,4.60836717]
[1724815074926,2.3591,2479.8,2479.5,7.60836717]
[1724815075128,2.3591,2479.8,2479.7,4.05836717]
[1724815075494,2.3591,2479.8,2479.7,4.60836717]
[1724815076320,0.00801543,2479.9,2479.7,4.60836717]
[1724815076527,0.00801543,2479.9,2479.8,0.55]
[1724815077134,0.00801543,2479.9,2479.8,0.63064169]
[1724815077296,0.00801543,2479.9,2479.8,3.63064169]
[1724815078832,0.00801543,2479.9,2479.8,4.03614169]
[1724815079136,0.00801543,2479.9,2479.8,3.55]
[1724815079298,0.00801543,2479.9,2479.8,3.0]
[1724815080410,0.00801543,2479.9,2479.7,4.05836717]
[1724815080411,2.2684,2479.8,2479.3,4.46386717]
[1724815080735,2.2684,2479.8,2479.3,0.4055]
[1724815080918,2.2684,2479.8,2479.2,0.4055]
[1724815081111,0.04009075,2479.7,2479.2,0.4055]
[1724815081305,0.04009075,2479.7,2479.3,4.13902015]
[1724815081517,2.2684,2479.8,2479.3,4.13902015]
[1724815081834,2.2684,2479.8,2479.5,4.05836717]
[1724815082131,2.2684,2479.8,2479.4,3.9555]
[1724815082500,2.2684,2479.8,2479.4,3.55]
[1724815083041,2.2684,2479.8,2479.5,3.0]
[1724815083212,0.03970456,2479.7,2479.4,0.55]
[1724815083412,0.03970456,2479.7,2479.2,3.4055]
[1724815083413,2.426,2479.6,2479.3,0.55]
[1724815083844,0.03893732,2479.5,2479.3,0.55]
[1724815084331,0.03893732,2479.5,2479.0,0.4055]
[1724815084332,2.3548,2479.4,2479.0,0.4055]
[1724815084531,2.3548,2479.4,2478.7,4.05836717]
[1724815084839,2.3548,2479.4,2479.3,0.1]
[1724815085528,2.30129287,2479.4,2479.3,0.1]
[1724815085915,2.53142216,2479.4,2479.3,0.1]
[1724815086116,2.30129287,2479.4,2479.3,0.1]
[1724815088913,2.30129287,2479.4,2479.3,4.70836717]
[1724815089119,2.30129287,2479.4,2479.3,0.65]
[1724815089955,2.33931614,2479.4,2479.3,0.65]
[1724815090328,2.30129287,2479.4,2479.3,0.73065908]
[1724815090652,0.03802327,2479.4,2479.3,0.65]
[1724815090854,2.377,2479.8,2479.3,0.73064968]
[1724815091056,2.377,2479.8,2479.4,0.55]
[1724815091220,2.377,2479.8,2479.5,0.08064938]
[1724815091421,2.377,2479.8,2479.6,0.55]
[1724815091642,2.377,2479.8,2479.3,0.1]
[1724815091842,2.377,2479.8,2479.4,0.55]
[1724815094482,2.377,2479.8,2479.3,0.1]
[1724815094483,2.61550154,2479.8,2479.3,0.1]
[1724815096443,4.29686871,2479.8,2479.3,0.1]
[1724815096645,2.3125,2479.7,2479.3,0.1]
[1724815096936,2.3125,2479.5,2479.3,0.1]
[1724815099549,6.41946717,2479.4,2479.3,0.1]
[1724815099747,2.3611,2479.3,2478.4,2.0]
[1724815099978,4.05836717,2479.4,2478.4,2.0]
[1724815099979,2.3611,2479.1,2478.4,2.0]
[1724815100386,2.3611,2479.1,2478.5,4.13905385]
[1724815100573,2.3611,2479.1,2478.7,4.05836717]
[1724815100797,2.3611,2479.1,2478.8,0.08067409]
[1724815101556,2.4519,2479.8,2478.8,0.08067409]
[1724815101757,2.4519,2479.8,2478.9,0.55]
[1724815101985,2.4519,2479.6,2479.0,0.08066717]
[1724815102599,2.4016,2479.4,2478.8,3.0]
[1724815102752,2.4016,2479.4,2478.6,3.0]
[1724815102951,2.4016,2479.2,2478.7,0.55]
[1724815103153,0.24376454,2479.1,2478.7,0.55]
[1724815103353,2.4016,2479.2,2478.7,0.55]
[1724815104389,2.4016,2479.2,2478.4,2.4055]
[1724815104604,2.4016,2479.2,2478.4,2.0]
[1724815106182,4.266,2479.8,2478.4,2.0]
[1724815106183,2.4483,2479.0,2478.4,2.0]
[1724815108611,2.4849,2478.8,2478.4,2.0]
[1724815108909,2.4849,2478.6,2478.4,2.0]
[1724815109704,0.03542669,2478.5,2478.4,2.0]
[1724815110498,2.4849,2478.6,2478.4,2.0]
[1724815110693,0.03549115,2478.5,2478.4,2.0]
[1724815111013,0.03549115,2478.5,2478.4,2.9555]
[1724815111311,2.2763,2478.9,2478.4,5.9555]
[1724815111496,2.2763,2478.9,2478.7,4.05836717]
[1724815111865,2.2763,2478.9,2478.7,4.46386717]
[1724815112511,2.25436016,2478.9,2478.7,4.46386717]
[1724815113514,0.42249909,2479.7,2478.7,4.46386717]
[1724815114806,4.05836717,2480.0,2478.7,4.46386717]
[1724815115006,0.41465369,2479.9,2478.7,4.46386717]
[1724815115225,0.00801543,2479.9,2479.1,4.05836717]
[1724815115381,2.2672,2479.8,2479.2,0.63066066]
[1724815117674,2.2672,2479.8,2478.8,3.4055]
[1724815117675,2.2672,2479.8,2478.9,4.13903347]
[1724815118011,2.2672,2479.8,2479.0,3.55]
[1724815118175,2.2672,2479.8,2479.0,3.63066678]
[1724815118377,2.2672,2479.8,2479.1,4.05836717]
[1724815118583,2.2672,2479.8,2479.2,0.63066046]
[1724815120624,2.2672,2479.8,2479.3,4.13902763]
[1724815120912,2.2672,2479.8,2479.4,0.55]
[1724815121214,2.2672,2479.8,2479.5,0.08065053]
[1724815127279,0.00801543,2479.9,2479.6,0.55]
[1724815127484,0.00801543,2479.9,2479.7,4.13900875]
[1724815127720,0.00801543,2479.9,2479.8,0.08064346]
[1724815127920,0.00801543,2479.9,2479.8,3.63064346]
[1724815128594,0.00057118,2479.9,2479.8,3.63064346]
[1724815130492,0.00057118,2479.9,2479.8,4.03614346]
[1724815130695,0.00057118,2479.9,2479.8,8.56058232]
[1724815131009,0.00057118,2479.9,2479.8,9.1133248]
[1724815131182,0.9380219,2480.4,2479.8,9.93570881]
[1724815131385,0.9380219,2480.4,2480.3,4.05836717]
[1724815131607,0.9380219,2480.4,2480.3,7.46386717]
[1724815131797,0.9380219,2480.4,2480.3,8.01386717]
[1724815132225,0.97571244,2480.4,2480.3,8.01386717]
[1724815132584,0.9380219,2480.4,2480.3,8.01386717]
[1724815135436,0.005,2481.0,2480.5,0.4055]
[1724815135604,0.005,2481.0,2480.9,4.46386717]
[1724815135957,0.005,2481.0,2480.9,7.54446202]
[1724815136102,0.005,2481.0,2480.9,8.09446202]
[1724815137302,0.005,2481.0,2480.9,8.01386717]
[1724815137536,0.42213257,2482.8,2481.1,0.4047]
[1724815137695,4.05836717,2482.8,2481.5,4.05836717]
[1724815137893,0.03886956,2482.3,2481.3,0.4047]
[1724815138132,1.13794988,2483.4,2480.3,0.82238401]
[1724815138133,0.47047366,2482.6,2480.3,3.0]
[1724815138293,0.47047366,2482.6,2480.7,4.05836717]
[1724815138492,0.03925566,2482.3,2480.8,3.4047]
[1724815138840,0.03925566,2482.3,2480.8,0.4047]
[1724815138841,0.47047366,2482.3,2480.8,0.4047]
[1724815139141,0.03794714,2482.2,2480.8,0.4047]
[1724815139343,4.05836717,2482.2,2480.9,4.05836717]
[1724815139496,4.05836717,2482.2,2481.0,0.08060492]
[1724815139497,0.03803721,2482.1,2481.0,0.08060492]
[1724815139698,0.44767765,2482.1,2481.0,0.08060492]
[1724815140048,0.44767765,2482.1,2481.3,4.05836717]
[1724815140210,0.03803721,2482.1,2481.3,4.05836717]
[1724815140535,2.3183,2482.0,2481.2,0.08059515]
[1724815140733,4.05836717,2482.5,2481.2,3.08059515]
[1724815140734,2.3183,2481.8,2481.2,3.08059515]
[1724815141194,2.35632434,2481.7,2481.2,3.0]
[1724815141400,2.35632434,2481.7,2481.2,3.08059516]
[1724815141850,2.35632434,2481.7,2481.2,3.0]
[1724815142012,2.4415,2481.5,2481.2,3.0]
[1724815142214,2.4415,2481.5,2480.9,0.4047]
[1724815142518,2.47971735,2481.4,2480.9,0.4047]
[1724815143343,2.47971735,2481.4,2480.8,3.0]
[1724815143541,2.47971735,2481.4,2481.1,4.05836717]
[1724815143835,2.4415,2481.4,2481.2,3.63059752]
[1724815144201,0.03801148,2481.3,2481.2,0.55]
[1724815144449,0.03801148,2481.3,2481.1,0.63059758]
[1724815145228,0.03801148,2481.3,2481.2,5.80562115]
[1724815145542,2.4507,2482.0,2481.2,9.35562115]
[1724815145730,2.4507,2482.0,2481.3,3.63058868]
[1724815145731,0.28308148,2481.9,2481.3,3.63058868]
[1724815145911,2.4507,2482.0,2481.3,3.63058868]
[1724815146707,2.4507,2482.0,2481.3,1.03528868]
[1724815147042,2.4507,2482.0,2481.3,0.9547]
[1724815147755,2.4507,2482.0,2481.4,5.80562115]
[1724815147919,2.4507,2482.0,2481.5,3.0]
[1724815148108,2.2788,2481.8,2481.3,0.55]
[1724815148925,2.2788,2481.8,2481.3,3.55]
[1724815149152,2.2788,2481.8,2481.4,0.0805898]
[1724815149532,2.2788,2481.8,2481.5,0.55]
[1724815149725,2.2788,2481.8,2481.6,0.08058509]
[1724815149945,2.0788,2481.8,2481.6,0.08058509]
[1724815150366,0.03801148,2481.7,2481.6,0.08058509]
[1724815150528,0.03801148,2481.7,2481.6,0.63058509]
[1724815150865,0.03801148,2481.7,2481.6,0.55]
[1724815151161,2.0788,2481.8,2481.6,3.63058238]
[1724815151323,0.58252661,2481.8,2481.6,3.63058238]
[1724815151665,4.266,2483.4,2481.6,0.55]
[1724815151820,4.266,2483.2,2480.9,0.4047]
[1724815152019,0.03801148,2481.7,2481.1,0.4047]
[1724815152266,0.03801148,2481.7,2481.0,0.55]
[1724815152267,0.85991818,2483.1,2481.2,1.03528478]
[1724815152432,0.85991818,2483.1,2481.3,0.63058469]
[1724815152433,0.03911804,2481.6,2481.3,0.63058469]
[1724815152761,0.51259182,2483.0,2481.3,6.03150584]
[1724815152967,0.51259182,2483.0,2481.4,3.0]
[1724815153127,0.03781411,2482.9,2481.5,0.63058469]
[1724815153327,0.03781411,2482.9,2481.5,0.55]
[1724815153572,0.03781411,2482.9,2481.5,0.5359]
[1724815153953,0.03781411,2482.9,2481.6,0.08058456]
[1724815154156,0.03781411,2482.9,2481.5,0.5359]
[1724815154356,2.366,2482.8,2481.6,0.08058179]
[1724815154560,2.60638141,2482.7,2481.6,0.08058179]
[1724815154795,2.40381411,2482.7,2481.6,0.08058179]
[1724815155344,2.40381411,2482.7,2481.7,2.3466]
[1724815155547,2.40381411,2482.7,2481.9,5.40092115]
[1724815155770,2.40381411,2482.7,2482.0,0.63056381]
[1724815156047,2.64419552,2482.7,2482.0,3.63056381]
[1724815156491,2.64419552,2482.7,2482.0,0.63056381]
[1724815156653,2.64419552,2482.7,2481.6,3.0]
[1724815156857,2.60638141,2482.7,2481.5,3.0]
[1724815157060,2.71691955,2482.6,2482.0,2.0]
[1724815157359,1.14,2483.3,2482.0,2.0]
[1724815157360,2.53848888,2482.5,2482.0,2.0]
[1724815158166,2.53848888,2482.5,2482.0,2.08057027]
[1724815158495,2.4998,2482.5,2482.0,2.0]
[1724815158789,0.03863744,2482.4,2482.0,2.0]
[1724815159184,2.4998,2482.5,2482.1,0.08057018]
[1724815159385,2.4998,2482.5,2482.0,2.08056393]
[1724815159588,2.61828,2482.4,2482.0,2.0]
[1724815159884,2.3683,2482.4,2482.0,2.0]
[1724815160185,1.14,2483.3,2482.0,2.0]
[1724815160186,0.03874032,2482.3,2482.0,2.0]
[1724815160389,2.4401,2482.2,2482.0,2.0]
[1724815160756,0.03874032,2482.1,2482.0,2.0]
[1724815162387,0.32881579,2482.1,2482.0,2.0]
[1724815162692,2.65531579,2482.1,2482.0,2.0]
[1724815162894,2.36524032,2482.1,2482.0,2.0]
[1724815168659,1.52349694,2482.1,2482.0,2.0]
[1724815169005,1.56177412,2482.1,2482.0,2.0]
[1724815176304,1.52349694,2482.1,2482.0,2.0]
[1724815180113,1.56003263,2482.1,2482.0,2.0]
[1724815184721,0.03653569,2482.1,2482.0,2.0]
[1724815184896,0.42191436,2482.3,2482.0,2.0]
[1724815185319,0.0364585,2482.2,2482.0,2.0]
[1724815185740,0.42191436,2482.3,2482.0,2.0]
[1724815185913,0.0364585,2482.1,2482.0,2.0]
[1724815186095,0.7069058,2482.3,2482.0,2.0]
[1724815186302,0.0364585,2482.2,2482.0,2.0]
[1724815186704,0.7069058,2482.3,2482.0,2.0]
[1724815187428,0.0364585,2482.2,2482.0,2.0]
[1724815187931,0.7069058,2482.3,2482.0,2.0]
[1724815188237,0.42191436,2482.3,2482.0,2.0]
[1724815188386,0.0364585,2482.2,2482.0,2.0]
[1724815188723,0.42191436,2482.3,2482.0,2.0]
[1724815189082,0.0364585,2482.2,2482.0,2.0]
[1724815189514,0.42191436,2482.3,2482.0,2.0]
[1724815189726,0.03665146,2482.1,2482.0,2.0]
[1724815189926,0.42191436,2482.3,2482.0,2.0]
[1724815190131,0.03665146,2482.1,2482.0,2.0]
[1724815190439,0.42191436,2482.3,2482.0,2.0]
[1724815190600,0.03665146,2482.1,2482.0,2.0]
[1724815190806,0.42191436,2482.3,2482.0,2.0]
[1724815191130,0.03665146,2482.1,2482.0,2.0]
[1724815191344,0.42191436,2482.3,2482.0,2.0]
[1724815191493,0.03665146,2482.1,2482.0,2.0]
[1724815191831,0.42191436,2482.3,2482.0,2.0]
[1724815193524,0.42191436,2482.3,2482.1,0.08056858]
[1724815193924,0.42191436,2482.3,2482.1,2.42186858]
[1724815195340,0.42191436,2482.3,2482.0,2.0]
[1724815196846,0.42191436,2482.3,2482.1,0.08056834]
[1724815197552,0.42191436,2482.3,2482.0,2.0]
[1724815198435,0.42191436,2482.3,2482.1,0.08056839]
[1724815199654,0.42191436,2482.3,2482.0,2.0]
[1724815200638,2.3772,2482.2,2482.0,2.0]
[1724815201141,0.03726888,2482.1,2482.0,2.0]
[1724815203003,2.49036888,2482.1,2482.0,2.0]
[1724815206096,0.03726888,2482.1,2482.0,2.0]
[1724815206637,0.03649688,2482.1,2482.0,2.0]
[1724815207472,2.3495,2482.3,2482.0,2.0]
[1724815207612,0.03716599,2482.1,2482.0,2.0]
[1724815208328,0.45914364,2482.1,2482.0,2.0]
[1724815208854,2.90034364,2482.1,2482.0,2.0]
[1724815211816,0.45914364,2482.1,2482.0,2.0]
[1724815215258,0.42197765,2482.1,2482.0,2.0]
[1724815216124,0.42197765,2482.1,2482.0,2.08057283]
[1724815216524,0.42197765,2482.1,2482.0,2.0]
[1724815217237,0.73603722,2482.1,2482.0,2.0]
[1724815217825,3.08093722,2482.1,2482.0,2.0]
[1724815222028,2.4384,2482.0,2481.5,1.0]
[1724815222329,0.03639409,2481.9,2481.5,1.0]
[1724815222560,0.35374004,2481.9,2481.5,1.0]
[1724815223541,0.03639409,2481.9,2481.5,1.0]
[1724815223862,0.42203485,2481.8,2481.5,1.0]
[1724815224042,0.45790123,2481.8,2481.5,1.0]
[1724815227207,0.45790123,2481.8,2481.1,2.3624934]
[1724815227405,0.42203485,2481.8,2481.1,2.3624934]
[1724815229086,0.42203485,2481.8,2481.1,6.41331078]
[1724815236645,2.3741,2481.7,2481.1,4.13141078]
[1724815237141,2.65371349,2481.7,2480.9,0.4047]
[1724815237444,0.42203485,2481.8,2481.6,6.41671738]
[1724815237643,1.21601569,2482.3,2481.7,0.08057534]
[1724815237970,0.42196847,2483.3,2481.8,4.05081738]
[1724815238149,0.7878634,2483.8,2481.9,0.08057091]
[1724815238444,1.14,2483.6,2482.0,4.05081738]
[1724815238603,4.7923,2483.5,2482.1,0.08056697]
[1724815238804,4.253,2483.5,2482.1,0.08056697]
[1724815240174,4.253,2483.5,2481.8,4.13138434]
[1724815240400,4.253,2483.5,2481.6,7.05081738]
[1724815240666,2.3422,2483.0,2481.7,0.08057798]
[1724815240865,2.3422,2483.0,2481.8,4.05081738]
[1724815241371,2.3422,2483.0,2481.7,0.08057798]
[1724815241529,2.3422,2482.8,2481.6,3.0]
[1724815241841,2.3422,2482.8,2481.6,7.05081738]
[1724815242226,2.3422,2482.8,2481.8,4.05081738]
[1724815242852,2.3422,2482.8,2481.5,2.8184]
[1724815243065,2.3422,2482.6,2481.3,4.84083401]
[1724815243231,2.3422,2482.6,2481.4,7.63868346]
[1724815243429,2.3422,2482.6,2481.6,4.05081738]
[1724815243928,2.3422,2483.2,2482.4,6.46321738]
[1724815246154,2.3422,2483.2,2482.4,2.4124]
[1724815246970,2.3422,2483.2,2482.3,0.08055738]
[1724815249294,2.3422,2483.2,2482.2,3.0]
[1724815249581,2.3422,2483.2,2481.7,0.4047]
[1724815249757,2.2875,2483.0,2481.6,7.73120605]
[1724815249951,2.2875,2483.0,2481.7,1.40267502]
[1724815250264,2.2875,2483.0,2481.6,7.73120605]
[1724815250470,2.2875,2483.0,2481.7,1.95266584]
[1724815250768,2.2875,2482.8,2481.7,0.55]
[1724815251343,2.2875,2482.8,2481.6,5.39590605]
[1724815251839,2.2875,2482.8,2481.4,2.3483]
[1724815252040,4.253,2483.6,2481.3,6.62181199]
[1724815252041,2.4328,2482.6,2481.3,6.62181199]
[1724815252253,2.4328,2482.6,2481.4,1.40285794]
[1724815252483,2.4328,2482.6,2481.5,0.08058364]
[1724815252696,2.4328,2482.6,2481.3,5.39590605]
[1724815252840,2.4328,2482.6,2481.1,16.13420594]
[1724815252841,2.4328,2482.6,2481.1,1.22590594]
[1724815253041,2.4328,2482.6,2481.0,26.45491157]
[1724815253042,2.4086,2482.4,2481.0,19.82719661]
[1724815253359,2.4086,2482.4,2480.8,1.0]
[1724815253884,4.253,2482.6,2480.8,1.0]
[1724815253885,2.86718908,2482.3,2480.8,1.0]
[1724815254180,2.65171891,2482.2,2480.8,1.0]
[1724815254487,0.03603387,2482.1,2480.8,1.0]
[1724815254787,2.365,2482.0,2480.8,1.0]
[1724815255295,0.03603387,2481.9,2480.8,1.0]
[1724815255512,2.3715,2481.8,2480.8,1.0]
[1724815255818,2.61225339,2481.7,2480.8,1.0]
[1724815256109,2.3715,2481.7,2480.8,1.0]
[1724815260799,2.4811,2481.5,2480.8,1.0]
[1724815262372,2.9394,2481.4,2480.8,1.0]
[1724815262819,2.2535,2481.2,2480.8,1.0]
[1724815263509,0.55,2481.1,2480.8,1.0]
[1724815263706,2.2535,2481.0,2480.8,1.0]
[1724815265226,2.41,2480.8,2479.5,19.82719661]
[1724815265529,2.41,2479.9,2479.3,0.4047]
[1724815265682,2.41,2479.9,2479.4,0.08065631]
[1724815266298,2.3747,2480.2,2479.4,0.08065631]
[1724815266921,2.61217,2480.2,2479.4,0.08065631]
[1724815267120,2.3747,2480.2,2479.4,0.08065631]
[1724815267493,2.3747,2480.2,2479.2,3.4047]
[1724815267688,2.3747,2480.2,2479.3,0.08065607]
[1724815267939,2.3747,2480.2,2479.2,3.4047]
[1724815268722,2.3747,2480.2,2479.0,3.4047]
[1724815268928,0.23747,2480.1,2479.2,0.4047]
[1724815269324,0.23747,2480.1,2479.3,0.08065666]
[1724815269641,2.3434,2480.0,2479.2,0.4047]
[1724815269799,2.3434,2480.0,2479.0,0.4047]
[1724815270338,2.3434,2480.0,2478.8,2.83313401]
[1724815270649,2.3434,2480.0,2478.9,0.08067403]
[1724815270946,0.23434,2479.9,2478.9,0.08067403]
[1724815271632,0.23434,2479.9,2478.9,5.88128008]
[1724815272025,0.23434,2479.9,2479.0,0.55]
[1724815272212,2.3434,2480.0,2479.1,0.08066357]
[1724815278455,2.3434,2480.0,2478.9,4.46257096]
[1724815278769,2.3434,2480.0,2478.9,0.4047]
[1724815280070,2.3434,2480.0,2478.8,2.42843401]
[1724815280227,2.3434,2480.0,2478.8,2.50910916]
[1724815280424,2.3432,2479.8,2478.9,4.05787096]
[1724815280659,1.50051224,2479.8,2479.0,0.63066338]
[1724815281235,0.10597166,2479.8,2479.0,0.63066338]
[1724815281750,0.10597166,2479.8,2479.1,6.42677096]
[1724815281937,0.10597166,2479.8,2479.2,0.63065421]
[1724815282265,0.10597166,2479.8,2479.3,0.08065421]
[1724815286152,0.10597166,2479.8,2479.4,0.55]
[1724815286593,2.2868,2480.8,2479.5,4.13852504]
[1724815286893,2.2868,2480.6,2479.6,0.55]
[1724815287071,2.2868,2480.6,2479.7,0.08064623]
[1724815287445,2.2868,2480.6,2479.9,4.05787096]
[1724815287674,2.2868,2481.5,2480.1,6.36227096]
[1724815287992,2.2868,2481.5,2480.7,4.05787096]
[1724815288196,2.2868,2481.5,2480.8,0.08060963]
[1724815288783,0.05,2483.1,2480.8,0.08060963]
[1724815288784,2.4274,2481.8,2481.3,4.05787096]
[1724815288992,2.4274,2481.8,2480.9,0.55]
[1724815288993,2.429,2483.0,2481.5,4.05787096]
[1724815289140,2.695596,2482.9,2481.6,0.08057927]
[1724815289480,2.429,2482.9,2481.7,0.55]
[1724815290046,2.429,2482.9,2481.8,0.08057912]
[1724815290240,2.429,2482.9,2481.9,0.55]
[1724815290456,0.2429,2482.8,2482.0,0.0805675]
[1724815290747,0.2429,2482.8,2482.1,0.55]
[1724815291064,0.2429,2482.8,2482.2,0.08056288]
[1724815291467,0.2429,2482.8,2481.7,2.4036]
[1724815291669,2.3017,2482.7,2481.8,0.08057717]
[1724815291978,2.3017,2482.7,2481.3,7.7000812]
[1724815291979,2.3017,2482.7,2481.4,3.08057817]
[1724815292278,2.3017,2482.7,2481.5,0.55]
[1724815292479,2.3017,2482.7,2481.6,0.08057812]
[1724815292679,2.3017,2482.7,2481.7,0.55]
[1724815292680,0.23017,2482.6,2481.7,0.55]
[1724815293040,0.23017,2482.6,2481.5,0.55]
[1724815293678,0.23017,2482.6,2481.6,0.08057522]
[1724815293879,0.23017,2482.6,2481.7,0.55]
[1724815294077,0.23017,2482.6,2481.8,0.08057513]
[1724815295081,0.23017,2482.6,2481.7,0.55]
[1724815295387,0.23017,2482.6,2481.4,3.0]
[1724815295388,0.23017,2482.6,2481.8,0.0805781]
[1724815295560,0.23017,2482.6,2481.6,0.08057798]
[1724815295759,0.23017,2482.6,2481.7,0.55]
[1724815296076,0.23017,2482.6,2481.8,0.08057787]
[1724815296286,0.23017,2482.6,2481.7,0.55]
[1724815296439,0.23017,2482.6,2481.5,0.55]
[1724815296644,0.23017,2482.6,2481.6,0.08057792]
[1724815296843,0.23017,2482.6,2481.7,0.55]
[1724815297071,0.23017,2482.6,2481.8,0.0805779]
[1724815298861,2.2561,2482.5,2481.7,0.55]
[1724815299059,2.2561,2482.5,2481.4,3.0]
[1724815299258,2.2561,2482.5,2481.3,2.42843401]
[1724815300691,2.2663,2483.0,2481.3,2.42843401]
[1724815300854,2.2663,2482.8,2481.1,19.82719661]
[1724815301865,2.451,2482.7,2481.1,19.82719661]
[1724815302391,2.451,2482.4,2480.8,2.42843401]
[1724815302549,2.451,2482.4,2480.9,0.0806093]
[1724815302755,2.451,2482.4,2480.7,0.08060743]
[1724815302969,2.451,2482.2,2480.7,0.08060743]
[1724815304065,2.451,2482.2,2481.3,5.3982812]
[1724815304277,2.451,2482.2,2481.4,0.08057773]
[1724815304476,2.451,2482.2,2481.5,0.55]
[1724815304993,2.451,2482.2,2481.4,0.08057773]
[1724815305192,2.6961,2482.2,2481.4,0.08057773]
[1724815305490,2.6961,2482.2,2481.2,0.0805891]
[1724815305799,2.6961,2482.2,2481.3,0.55]
[1724815305968,2.6961,2482.2,2481.4,0.08058917]
[1724815306155,0.26961,2482.1,2481.4,0.08058917]
[1724815306749,0.26961,2482.1,2481.3,0.55]
[1724815306963,0.26961,2482.1,2481.2,3.0]
[1724815307164,0.26961,2482.1,2481.3,0.08059332]
[1724815307386,0.26961,2482.1,2481.0,0.08059332]
[1724815307593,0.26961,2482.1,2480.5,3.12280594]
[1724815307594,2.3185,2482.0,2480.5,3.12280594]
[1724815308301,2.3185,2482.0,2480.5,2.3016]
[1724815309472,2.3185,2482.0,2480.6,0.55]
[1724815310080,2.3185,2482.0,2480.6,3.55]
[1724815310397,2.4356,2481.8,2480.6,3.55]
[1724815311196,2.4356,2481.8,2480.6,0.55]
[1724815311393,2.4356,2481.8,2480.5,0.55]
[1724815313106,2.4356,2481.8,2480.4,0.08061699]
[1724815315258,2.4356,2481.8,2480.5,0.55]
[1724815315454,2.3042,2481.6,2480.6,0.08061095]
[1724815315654,2.3042,2481.6,2480.7,0.55]
[1724815315992,2.3042,2481.6,2480.8,0.08061096]
[1724815316373,2.3042,2481.6,2480.3,8.3982812]
[1724815316693,2.3042,2481.6,2480.4,0.63061197]
[1724815316855,2.68012,2481.5,2480.4,0.63061197]
[1724815317057,2.4497,2481.5,2480.4,0.63061197]
[1724815318079,2.4497,2481.5,2480.4,0.55]
[1724815318673,2.4497,2481.5,2480.3,0.55]
[1724815319058,2.4497,2481.5,2480.4,0.08061937]
[1724815319262,2.315,2481.3,2480.4,0.08061937]
[1724815319569,2.315,2481.3,2480.4,2.49681937]
[1724815319880,2.315,2481.3,2480.4,0.08061937]
[1724815320587,2.315,2481.3,2480.5,0.55]
[1724815320896,2.315,2481.3,2480.6,0.08061119]
[1724815321403,2.315,2481.3,2480.6,7.89509239]
[1724815321709,2.315,2481.3,2480.7,0.55]
[1724815321858,1.47301216,2481.3,2480.8,0.0806081]
[1724815322058,2.4147,2483.7,2481.0,5.3982812]
[1724815322309,2.4147,2483.7,2481.1,3.08058993]
[1724815322310,1.14,2483.1,2481.1,3.08058993]
[1724815322463,1.14,2483.1,2481.2,0.55]
[1724815322659,1.14,2483.1,2481.3,0.08058988]
[1724815322855,1.14,2483.1,2480.9,2.4074]
[1724815322856,0.48363767,2483.0,2481.0,3.0]
[1724815323054,0.48363767,2483.0,2480.7,3.0]
[1724815323055,4.253,2482.9,2480.7,3.0]
[1724815323296,4.253,2482.7,2480.8,0.55]
[1724815323480,4.803,2482.6,2480.8,0.55]
[1724815324397,4.253,2482.4,2480.3,7.8930812]
[1724815324610,0.93644875,2482.5,2480.3,7.8930812]
[1724815324611,4.253,2482.2,2480.3,7.8930812]
[1724815324965,2.4271,2482.1,2480.3,7.8930812]
[1724815325167,2.4271,2481.9,2480.1,0.4047]
[1724815325598,2.4271,2481.9,2480.2,0.08062235]
[1724815326104,6.5923,2481.8,2480.2,0.08062234]
[1724815326266,2.3393,2481.6,2480.2,0.08062234]
[1724815327886,2.3393,2481.6,2480.1,3.0]
[1724815327887,2.3393,2481.6,2480.3,0.63062029]
[1724815328094,2.3393,2481.6,2480.3,4.68409851]
[1724815329995,2.3393,2481.6,2480.5,4.05347822]
[1724815330193,2.3393,2481.6,2480.6,0.6306078]
[1724815330402,2.57323,2481.6,2480.6,0.6306078]
[1724815333523,2.1895,2480.2,2479.1,0.82245572]
[1724815333841,12.2,2481.2,2478.5,4.53644238]
[1724815333842,0.4221,2480.0,2478.5,4.53644238]